[Event "Early-Titled-Tuesday-Blitz-February-20-2024"]
[Site "Chess.com"]
[Date "2024.02.20"]
[Round "1"]
[White "ilqar_74"]
[Black "ArchibaldCerveza29"]
[Result "1-0"]
[WhiteElo "2838"]
[BlackElo "2470"]
[TimeControl "180+1"]
[EndTime "8:06:27 PST"]
[Termination "ilqar_74 won by resignation"]

1. e4 {[%clk 0:03:00.9]} 1... b6 {[%clk 0:02:58.1]} 2. d4 {[%clk 0:02:59.9]}
2... Bb7 {[%clk 0:02:57.8]} 3. Nc3 {[%clk 0:03:00.1]} 3... g6 {[%clk 0:02:55.9]}
4. f4 {[%clk 0:02:59.8]} 4... Bg7 {[%clk 0:02:56.8]} 5. Nf3 {[%clk 0:02:58.9]}
5... d6 {[%clk 0:02:52.3]} 6. Bd3 {[%clk 0:02:58]} 6... Nd7 {[%clk 0:02:50.5]}
7. e5 {[%clk 0:02:57.4]} 7... e6 {[%clk 0:02:47]} 8. Ne4 {[%clk 0:02:54.9]} 8...
d5 {[%clk 0:02:44.8]} 9. Nf2 {[%clk 0:02:53.9]} 9... c5 {[%clk 0:02:43.9]} 10.
c3 {[%clk 0:02:54]} 10... Ne7 {[%clk 0:02:43.3]} 11. Qe2 {[%clk 0:02:53]} 11...
h5 {[%clk 0:02:42.7]} 12. Be3 {[%clk 0:02:50.7]} 12... a6 {[%clk 0:02:42.4]} 13.
Ng5 {[%clk 0:02:46.9]} 13... Nf5 {[%clk 0:02:40]} 14. Bxf5 {[%clk 0:02:40]}
14... gxf5 {[%clk 0:02:40.9]} 15. Nd3 {[%clk 0:02:34.2]} 15... Rc8 {[%clk
0:02:37.6]} 16. Qf2 {[%clk 0:02:31.6]} 16... Qe7 {[%clk 0:02:36.8]} 17. h4
{[%clk 0:02:28]} 17... Bh6 {[%clk 0:02:36.4]} 18. Qf3 {[%clk 0:02:24.5]} 18...
Bf8 {[%clk 0:02:31.4]} 19. a3 {[%clk 0:02:11.7]} 19... cxd4 {[%clk 0:02:29.1]}
20. Bxd4 {[%clk 0:02:11.2]} 20... Nc5 {[%clk 0:02:26.8]} 21. O-O {[%clk
0:02:06.9]} 21... Ne4 {[%clk 0:02:21.6]} 22. Qe3 {[%clk 0:01:59.9]} 22... b5
{[%clk 0:02:18.5]} 23. a4 {[%clk 0:01:59.7]} 23... bxa4 {[%clk 0:02:14.5]} 24.
Rxa4 {[%clk 0:02:00.6]} 24... Qd7 {[%clk 0:02:15]} 25. Rfa1 {[%clk 0:01:55.1]}
25... Be7 {[%clk 0:02:12.8]} 26. Nb4 {[%clk 0:01:51.7]} 26... Bxg5 {[%clk
0:02:06.3]} 27. fxg5 {[%clk 0:01:48.5]} 27... Rc4 {[%clk 0:01:56.7]} 28. Ra5
{[%clk 0:01:44.1]} 28... O-O {[%clk 0:01:41.8]} 29. Nxa6 {[%clk 0:01:40.3]}
29... Rfc8 {[%clk 0:01:21.8]} 30. Nb4 {[%clk 0:01:36]} 30... Kh7 {[%clk
0:01:19.3]} 31. Ra7 {[%clk 0:01:32.2]} 31... R8c7 {[%clk 0:01:18.7]} 32. Qf3
{[%clk 0:01:29.5]} 32... Kg6 {[%clk 0:01:17.7]} 33. Nd3 {[%clk 0:01:29.8]} 33...
Rc8 {[%clk 0:01:05.9]} 34. Nf4+ {[%clk 0:01:28.3]} 34... Kg7 {[%clk 0:01:06.8]}
35. Nxh5+ {[%clk 0:01:28.2]} 35... Kf8 {[%clk 0:01:07.1]} 36. Nf6 {[%clk
0:01:28.1]} 36... Qc7 {[%clk 0:01:04.5]} 37. Qh5 {[%clk 0:01:18.1]} 37... Ke7
{[%clk 0:01:04.8]} 38. g6 {[%clk 0:01:17.4]} 38... Nxf6 {[%clk 0:00:51.3]} 39.
exf6+ {[%clk 0:01:17.2]} 39... Kd7 {[%clk 0:00:52]} 40. gxf7 {[%clk 0:01:13.5]}
40... Rxd4 {[%clk 0:00:51.1]} 41. cxd4 {[%clk 0:01:12.3]} 41... Qb6 {[%clk
0:00:51]} 42. Qh7 {[%clk 0:01:02.2]} 42... Qxd4+ {[%clk 0:00:48]} 43. Kh1 {[%clk
0:01:02.1]} 43... Kc6 {[%clk 0:00:36.6]} 44. f8=Q {[%clk 0:00:58.6]} 44... Rxf8
{[%clk 0:00:35.5]} 45. Qxb7+ {[%clk 0:00:58.3]} 1-0

[Event "Early-Titled-Tuesday-Blitz-February-20-2024"]
[Site "Chess.com"]
[Date "2024.02.20"]
[Round "1"]
[White "Licancabur"]
[Black "GelmanAlexander"]
[Result "0-1"]
[WhiteElo "2421"]
[BlackElo "2767"]
[TimeControl "180+1"]
[EndTime "8:06:28 PST"]
[Termination "GelmanAlexander won on time"]

1. d4 {[%clk 0:02:59.4]} 1... Nf6 {[%clk 0:02:57.7]} 2. Bg5 {[%clk 0:02:58.6]}
2... c5 {[%clk 0:02:57.3]} 3. Nc3 {[%clk 0:02:57.7]} 3... cxd4 {[%clk 0:02:55]}
4. Qxd4 {[%clk 0:02:57.6]} 4... Nc6 {[%clk 0:02:55.6]} 5. Qh4 {[%clk 0:02:57.5]}
5... e6 {[%clk 0:02:56.2]} 6. e4 {[%clk 0:02:56.3]} 6... Be7 {[%clk 0:02:56.2]}
7. O-O-O {[%clk 0:02:55.8]} 7... d6 {[%clk 0:02:56.5]} 8. f4 {[%clk 0:02:52.8]}
8... Qa5 {[%clk 0:02:55.3]} 9. Nf3 {[%clk 0:02:47.4]} 9... a6 {[%clk 0:02:41.5]}
10. Kb1 {[%clk 0:02:41.1]} 10... h6 {[%clk 0:02:41.2]} 11. a3 {[%clk 0:01:59.3]}
11... Rg8 {[%clk 0:02:38.8]} 12. Bxf6 {[%clk 0:01:55.2]} 12... Bxf6 {[%clk
0:02:39]} 13. Qe1 {[%clk 0:01:55.3]} 13... Bxc3 {[%clk 0:02:39]} 14. Qxc3 {[%clk
0:01:55.3]} 14... Qxc3 {[%clk 0:02:39.1]} 15. bxc3 {[%clk 0:01:55.5]} 15... Ke7
{[%clk 0:02:39]} 16. Nd4 {[%clk 0:01:48.4]} 16... Bd7 {[%clk 0:02:36.6]} 17. Kb2
{[%clk 0:01:33.8]} 17... g5 {[%clk 0:02:33.6]} 18. g3 {[%clk 0:00:54]} 18...
gxf4 {[%clk 0:02:29.8]} 19. gxf4 {[%clk 0:00:54.3]} 19... Rg4 {[%clk 0:02:29.8]}
20. Ne2 {[%clk 0:00:43.8]} 20... Na5 {[%clk 0:02:25.1]} 21. Rg1 {[%clk
0:00:24.8]} 21... Rh4 {[%clk 0:02:22.6]} 22. h3 {[%clk 0:00:18.4]} 22... Nc4+
{[%clk 0:02:21]} 23. Kb3 {[%clk 0:00:18.6]} 23... Rc8 {[%clk 0:02:20]} 24. Nd4
{[%clk 0:00:16.1]} 24... Na5+ {[%clk 0:02:09.5]} 25. Kb2 {[%clk 0:00:16]} 25...
Rxf4 {[%clk 0:02:08.8]} 26. Bd3 {[%clk 0:00:14.6]} 26... Nc4+ {[%clk 0:01:59.3]}
27. Bxc4 {[%clk 0:00:14.6]} 27... Rxc4 {[%clk 0:01:59.4]} 28. Rde1 {[%clk
0:00:13.9]} 28... e5 {[%clk 0:01:52.1]} 29. Nf5+ {[%clk 0:00:09.7]} 29... Bxf5
{[%clk 0:01:51.8]} 30. exf5 {[%clk 0:00:10.1]} 30... Rxf5 {[%clk 0:01:51.1]} 31.
Rg8 {[%clk 0:00:10.5]} 31... Rf3 {[%clk 0:01:47.3]} 32. Rb8 {[%clk 0:00:10]}
32... Rfxc3 {[%clk 0:01:42.3]} 33. Rxb7+ {[%clk 0:00:10]} 33... Ke6 {[%clk
0:01:42.9]} 34. Re2 {[%clk 0:00:08.6]} 34... Rxh3 {[%clk 0:01:38.7]} 35. Ra7
{[%clk 0:00:07.7]} 35... Rc6 {[%clk 0:01:38.4]} 36. Rf2 {[%clk 0:00:06.2]} 36...
f5 {[%clk 0:01:35.7]} 37. Rg2 {[%clk 0:00:06.5]} 37... f4 {[%clk 0:01:34]} 38.
Rg6+ {[%clk 0:00:05.2]} 38... Kd5 {[%clk 0:01:34.3]} 39. a4 {[%clk 0:00:02.9]}
39... Rh2 {[%clk 0:01:33.4]} 40. Kb3 {[%clk 0:00:01.5]} 40... Rhxc2 {[%clk
0:01:33]} 41. Rxh6 {[%clk 0:00:01.5]} 41... f3 {[%clk 0:01:28.1]} 0-1

[Event "Early-Titled-Tuesday-Blitz-February-20-2024"]
[Site "Chess.com"]
[Date "2024.02.20"]
[Round "1"]
[White "LaPiToB"]
[Black "BilicVladimir"]
[Result "0-1"]
[WhiteElo "2309"]
[BlackElo "2646"]
[TimeControl "180+1"]
[EndTime "8:06:29 PST"]
[Termination "BilicVladimir won by resignation"]

1. d4 {[%clk 0:03:00.9]} 1... d5 {[%clk 0:02:58.9]} 2. c4 {[%clk 0:03:00.9]}
2... c6 {[%clk 0:02:59]} 3. Nc3 {[%clk 0:03:00]} 3... Nf6 {[%clk 0:02:59.1]} 4.
e3 {[%clk 0:02:59.2]} 4... a6 {[%clk 0:02:58.8]} 5. Nf3 {[%clk 0:02:56.5]} 5...
b5 {[%clk 0:02:58.8]} 6. b3 {[%clk 0:02:56.6]} 6... Bg4 {[%clk 0:02:57.7]} 7.
Be2 {[%clk 0:02:55.9]} 7... e6 {[%clk 0:02:57.7]} 8. O-O {[%clk 0:02:52.9]} 8...
Nbd7 {[%clk 0:02:57.6]} 9. a4 {[%clk 0:02:50.8]} 9... b4 {[%clk 0:02:55.5]} 10.
Nb1 {[%clk 0:02:48.6]} 10... c5 {[%clk 0:02:54.1]} 11. Nbd2 {[%clk 0:02:40]}
11... Be7 {[%clk 0:02:52.5]} 12. Bb2 {[%clk 0:02:38.4]} 12... O-O {[%clk
0:02:51.3]} 13. Rc1 {[%clk 0:02:36.7]} 13... dxc4 {[%clk 0:02:40.1]} 14. Nxc4
{[%clk 0:02:33.3]} 14... Nd5 {[%clk 0:02:33]} 15. h3 {[%clk 0:02:25]} 15... Bh5
{[%clk 0:02:25.2]} 16. Nfe5 {[%clk 0:02:13.9]} 16... Bxe2 {[%clk 0:02:21.3]} 17.
Qxe2 {[%clk 0:02:13.5]} 17... Nxe5 {[%clk 0:02:21]} 18. Nxe5 {[%clk 0:02:11.8]}
18... cxd4 {[%clk 0:02:17.5]} 19. Bxd4 {[%clk 0:02:05.9]} 19... Bf6 {[%clk
0:02:14]} 20. Nc6 {[%clk 0:02:03]} 20... Qd7 {[%clk 0:01:57.2]} 21. Bxf6 {[%clk
0:01:58.2]} 21... gxf6 {[%clk 0:01:49.6]} 22. Rfd1 {[%clk 0:01:44.9]} 22... Rfc8
{[%clk 0:01:43.5]} 23. Nxb4 {[%clk 0:01:34]} 23... Rxc1 {[%clk 0:01:35.3]} 24.
Rxc1 {[%clk 0:01:24.3]} 24... Nxb4 {[%clk 0:01:30.8]} 25. Qg4+ {[%clk 0:01:24]}
25... Kh8 {[%clk 0:01:30.9]} 26. Qxb4 {[%clk 0:01:24]} 26... a5 {[%clk
0:01:18.4]} 27. Qf4 {[%clk 0:01:19.4]} 27... Kg7 {[%clk 0:01:14]} 28. Rc7 {[%clk
0:01:17.6]} 28... Qd1+ {[%clk 0:01:13.2]} 29. Kh2 {[%clk 0:01:16.9]} 29... Qh5
{[%clk 0:01:13]} 30. g3 {[%clk 0:01:04.7]} 30... Rd8 {[%clk 0:01:09.7]} 31. Kg2
{[%clk 0:00:57.8]} 31... Rd3 {[%clk 0:01:05.2]} 32. Qc4 {[%clk 0:00:53.7]} 32...
Rd5 {[%clk 0:00:55.2]} 33. Qc6 {[%clk 0:00:50.4]} 33... Qe5 {[%clk 0:00:50.6]}
34. Rc8 {[%clk 0:00:47.9]} 34... Qe4+ {[%clk 0:00:49.2]} 35. Kh2 {[%clk
0:00:46.1]} 35... Qf3 {[%clk 0:00:46.2]} 0-1

[Event "Early-Titled-Tuesday-Blitz-February-20-2024"]
[Site "Chess.com"]
[Date "2024.02.20"]
[Round "1"]
[White "agvania123"]
[Black "PavelShkapenko"]
[Result "1/2-1/2"]
[WhiteElo "2396"]
[BlackElo "2711"]
[TimeControl "180+1"]
[EndTime "8:06:30 PST"]
[Termination "Game drawn by repetition"]

1. e4 {[%clk 0:02:42.3]} 1... e5 {[%clk 0:02:59.2]} 2. Nc3 {[%clk 0:02:39.8]}
2... Nf6 {[%clk 0:02:57.3]} 3. g3 {[%clk 0:02:40]} 3... Bc5 {[%clk 0:02:55.6]}
4. Bg2 {[%clk 0:02:40.4]} 4... Nc6 {[%clk 0:02:54.4]} 5. d3 {[%clk 0:02:39.9]}
5... a5 {[%clk 0:02:54.7]} 6. h3 {[%clk 0:02:39.4]} 6... d6 {[%clk 0:02:50.5]}
7. Nge2 {[%clk 0:02:39.8]} 7... Be6 {[%clk 0:02:48.1]} 8. O-O {[%clk 0:02:39.5]}
8... a4 {[%clk 0:02:48.4]} 9. a3 {[%clk 0:02:38.2]} 9... d5 {[%clk 0:02:48.9]}
10. exd5 {[%clk 0:02:37.8]} 10... Nxd5 {[%clk 0:02:48.6]} 11. Nxd5 {[%clk
0:02:28.4]} 11... Bxd5 {[%clk 0:02:48.2]} 12. Nc3 {[%clk 0:02:29]} 12... Bxg2
{[%clk 0:02:47.8]} 13. Kxg2 {[%clk 0:02:29.9]} 13... O-O {[%clk 0:02:47.9]} 14.
Be3 {[%clk 0:02:28.1]} 14... Nd4 {[%clk 0:02:39.2]} 15. Bxd4 {[%clk 0:02:24.1]}
15... Bxd4 {[%clk 0:02:37.8]} 16. Qf3 {[%clk 0:02:19.4]} 16... Ra6 {[%clk
0:02:26.7]} 17. Rab1 {[%clk 0:02:13.3]} 17... Qd7 {[%clk 0:02:11.5]} 18. Qd5
{[%clk 0:02:01.2]} 18... Rd6 {[%clk 0:02:07.3]} 19. Qxb7 {[%clk 0:02:00.2]}
19... Rh6 {[%clk 0:01:44]} 20. h4 {[%clk 0:01:58.7]} 20... g5 {[%clk 0:01:44]}
21. Qd5 {[%clk 0:01:53.5]} 21... Rd6 {[%clk 0:01:37.6]} 22. Qe4 {[%clk
0:01:51.2]} 22... f5 {[%clk 0:01:34.8]} 23. Qe2 {[%clk 0:01:46.2]} 23... gxh4
{[%clk 0:01:32.5]} 24. Rh1 {[%clk 0:01:41.7]} 24... hxg3 {[%clk 0:01:30.9]} 25.
fxg3 {[%clk 0:01:41.2]} 25... Rg6 {[%clk 0:01:26.4]} 26. Qf3 {[%clk 0:01:33]}
26... f4 {[%clk 0:01:21.1]} 27. Ne4 {[%clk 0:01:31.3]} 27... fxg3 {[%clk
0:01:18.7]} 28. Qh5 {[%clk 0:01:30.6]} 28... Rf7 {[%clk 0:00:35.1]} 29. Rbf1
{[%clk 0:01:29]} 29... Rxf1 {[%clk 0:00:29.4]} 30. Rxf1 {[%clk 0:01:25.7]} 30...
Kg7 {[%clk 0:00:29.7]} 31. Qh4 {[%clk 0:01:21.4]} 31... Qe8 {[%clk 0:00:13.7]}
32. Rf6 {[%clk 0:01:09.8]} 32... Bxb2 {[%clk 0:00:12.3]} 33. Rxg6+ {[%clk
0:01:03]} 33... Qxg6 {[%clk 0:00:12.5]} 34. Qe7+ {[%clk 0:01:03.1]} 34... Qf7
{[%clk 0:00:12.7]} 35. Qg5+ {[%clk 0:01:02]} 35... Qg6 {[%clk 0:00:12.1]} 36.
Qe7+ {[%clk 0:01:01.9]} 36... Qf7 {[%clk 0:00:12.4]} 37. Qg5+ {[%clk 0:01:01.8]}
37... Qg6 {[%clk 0:00:10.4]} 38. Qe7+ {[%clk 0:01:01.7]} 1/2-1/2

[Event "Early-Titled-Tuesday-Blitz-February-20-2024"]
[Site "Chess.com"]
[Date "2024.02.20"]
[Round "1"]
[White "pfalcon1949"]
[Black "WilsonPalencia21"]
[Result "0-1"]
[WhiteElo "1977"]
[BlackElo "2543"]
[TimeControl "180+1"]
[EndTime "8:06:37 PST"]
[Termination "WilsonPalencia21 won by checkmate"]

1. e4 {[%clk 0:03:00.1]} 1... c5 {[%clk 0:02:59.5]} 2. Nf3 {[%clk 0:02:59.1]}
2... d6 {[%clk 0:02:59.5]} 3. d4 {[%clk 0:02:58.8]} 3... cxd4 {[%clk 0:02:59.5]}
4. Nxd4 {[%clk 0:02:58.9]} 4... Nf6 {[%clk 0:02:59.7]} 5. Nc3 {[%clk 0:02:58.8]}
5... g6 {[%clk 0:02:59.5]} 6. Be3 {[%clk 0:02:57.4]} 6... Bg7 {[%clk 0:02:59.5]}
7. f3 {[%clk 0:02:57.2]} 7... O-O {[%clk 0:02:58.3]} 8. Bc4 {[%clk 0:02:57.7]}
8... Nc6 {[%clk 0:02:58.4]} 9. Qe2 {[%clk 0:02:56.6]} 9... Bd7 {[%clk
0:02:57.4]} 10. O-O-O {[%clk 0:02:56.5]} 10... Rc8 {[%clk 0:02:57.4]} 11. Bb3
{[%clk 0:02:55.7]} 11... Ne5 {[%clk 0:02:57.2]} 12. h4 {[%clk 0:02:54.6]} 12...
h5 {[%clk 0:02:56.9]} 13. Kb1 {[%clk 0:02:53]} 13... Qa5 {[%clk 0:02:51.3]} 14.
g4 {[%clk 0:02:52.3]} 14... hxg4 {[%clk 0:02:48.7]} 15. f4 {[%clk 0:02:52.5]}
15... Nc6 {[%clk 0:02:30.2]} 16. f5 {[%clk 0:02:33.7]} 16... gxf5 {[%clk
0:02:10.1]} 17. exf5 {[%clk 0:02:20.5]} 17... Ne5 {[%clk 0:02:09.9]} 18. Qd2
{[%clk 0:02:07.9]} 18... Rxc3 {[%clk 0:01:58.7]} 19. bxc3 {[%clk 0:02:01.2]}
19... Ne4 {[%clk 0:01:57.5]} 20. Qc1 {[%clk 0:01:35.5]} 20... Nxc3+ {[%clk
0:01:50.7]} 21. Kb2 {[%clk 0:01:30.5]} 21... Nf3 {[%clk 0:01:48]} 22. Bh6 {[%clk
0:01:23.6]} 22... Nxd1+ {[%clk 0:01:42.1]} 23. Rxd1 {[%clk 0:01:19.6]} 23...
Bxh6 {[%clk 0:01:13.5]} 24. Qxh6 {[%clk 0:01:13.7]} 24... Qe5 {[%clk 0:01:13.3]}
25. c3 {[%clk 0:00:59.1]} 25... Rc8 {[%clk 0:01:09.1]} 26. Qg6+ {[%clk
0:00:53.8]} 26... Qg7 {[%clk 0:01:06.5]} 27. Bxf7+ {[%clk 0:00:49]} 27... Kf8
{[%clk 0:01:04.3]} 28. Ne6+ {[%clk 0:00:21.8]} 28... Bxe6 {[%clk 0:01:03.4]} 29.
fxe6 {[%clk 0:00:22.1]} 29... Qxc3+ {[%clk 0:00:34.9]} 30. Kb1 {[%clk
0:00:22.1]} 30... Nd2+ {[%clk 0:00:33.9]} 31. Rxd2 {[%clk 0:00:21.9]} 31... Qc1#
{[%clk 0:00:32.9]} 0-1

[Event "Early-Titled-Tuesday-Blitz-February-20-2024"]
[Site "Chess.com"]
[Date "2024.02.20"]
[Round "1"]
[White "komogro"]
[Black "Denis_Makhnyov"]
[Result "0-1"]
[WhiteElo "2525"]
[BlackElo "3018"]
[TimeControl "180+1"]
[EndTime "8:06:40 PST"]
[Termination "Denis_Makhnyov won by resignation"]

1. Nf3 {[%clk 0:02:59.3]} 1... d5 {[%clk 0:02:58.9]} 2. g3 {[%clk 0:02:59.1]}
2... Nc6 {[%clk 0:02:56]} 3. Bg2 {[%clk 0:02:54.3]} 3... e5 {[%clk 0:02:55.7]}
4. O-O {[%clk 0:02:54.9]} 4... Nf6 {[%clk 0:02:55]} 5. c4 {[%clk 0:02:55.3]}
5... d4 {[%clk 0:02:54.6]} 6. e3 {[%clk 0:02:51.4]} 6... Be7 {[%clk 0:02:52.1]}
7. exd4 {[%clk 0:02:51.2]} 7... exd4 {[%clk 0:02:52.6]} 8. d3 {[%clk 0:02:50.6]}
8... O-O {[%clk 0:02:52]} 9. Re1 {[%clk 0:02:50.8]} 9... Nd7 {[%clk 0:02:50.7]}
10. Nbd2 {[%clk 0:02:44.9]} 10... Nc5 {[%clk 0:02:47.2]} 11. Ne4 {[%clk
0:02:42.9]} 11... Ne6 {[%clk 0:02:45.1]} 12. h4 {[%clk 0:02:34.7]} 12... h6
{[%clk 0:02:44.8]} 13. a3 {[%clk 0:02:29.7]} 13... a5 {[%clk 0:02:39.4]} 14. Bf4
{[%clk 0:02:28.6]} 14... Nxf4 {[%clk 0:02:14]} 15. gxf4 {[%clk 0:02:25.3]} 15...
Bxh4 {[%clk 0:02:13.8]} 16. Ng3 {[%clk 0:02:17.3]} 16... Be7 {[%clk 0:01:59.9]}
17. Qa4 {[%clk 0:02:09.8]} 17... Bd7 {[%clk 0:01:53.1]} 18. Qc2 {[%clk
0:02:08.4]} 18... Re8 {[%clk 0:01:46.9]} 19. Re2 {[%clk 0:01:54.2]} 19... Bd6
{[%clk 0:01:45.1]} 20. Rxe8+ {[%clk 0:01:32.9]} 20... Bxe8 {[%clk 0:01:44.8]}
21. Qd2 {[%clk 0:00:58.2]} 21... Qf6 {[%clk 0:01:44.1]} 22. Ne4 {[%clk
0:00:39.8]} 22... Qxf4 {[%clk 0:01:43.9]} 23. Nxd6 {[%clk 0:00:39.9]} 23... Qxd6
{[%clk 0:01:42.9]} 24. Re1 {[%clk 0:00:35]} 24... Bd7 {[%clk 0:01:43]} 25. Qd1
{[%clk 0:00:26.5]} 25... Rd8 {[%clk 0:01:36.6]} 26. Nd2 {[%clk 0:00:26.4]} 26...
Qg6 {[%clk 0:01:35]} 27. Qf3 {[%clk 0:00:24.8]} 27... Bf5 {[%clk 0:01:30.7]} 28.
Ne4 {[%clk 0:00:23.6]} 28... Ne5 {[%clk 0:01:12.4]} 29. Qe2 {[%clk 0:00:15.2]}
29... Bg4 {[%clk 0:00:59.3]} 30. Qf1 {[%clk 0:00:13.6]} 30... Nf3+ {[%clk
0:00:59.4]} 31. Bxf3 {[%clk 0:00:12.3]} 31... Bxf3+ {[%clk 0:01:00.3]} 32. Ng3
{[%clk 0:00:12.8]} 32... h5 {[%clk 0:01:00]} 33. Qh3 {[%clk 0:00:09.3]} 33...
Qxd3 {[%clk 0:00:59.9]} 34. Nxh5 {[%clk 0:00:09.6]} 34... Qg6+ {[%clk
0:00:59.2]} 35. Ng3 {[%clk 0:00:09.8]} 35... d3 {[%clk 0:00:59.7]} 0-1

[Event "Early-Titled-Tuesday-Blitz-February-20-2024"]
[Site "Chess.com"]
[Date "2024.02.20"]
[Round "1"]
[White "baki83"]
[Black "GiorgianBarbosa"]
[Result "1-0"]
[WhiteElo "2905"]
[BlackElo "2504"]
[TimeControl "180+1"]
[EndTime "8:06:40 PST"]
[Termination "baki83 won by resignation"]

1. e4 {[%clk 0:02:17.1]} 1... c5 {[%clk 0:02:58.4]} 2. Nf3 {[%clk 0:02:17.3]}
2... g6 {[%clk 0:02:59.3]} 3. d4 {[%clk 0:02:17.2]} 3... cxd4 {[%clk 0:02:59.4]}
4. Qxd4 {[%clk 0:02:18.1]} 4... Nf6 {[%clk 0:02:58.6]} 5. Nc3 {[%clk 0:02:18.7]}
5... Nc6 {[%clk 0:02:59]} 6. Qa4 {[%clk 0:02:18.9]} 6... d6 {[%clk 0:02:59.6]}
7. e5 {[%clk 0:02:19.4]} 7... dxe5 {[%clk 0:03:00.5]} 8. Nxe5 {[%clk 0:02:19.8]}
8... Bd7 {[%clk 0:03:01.4]} 9. Nxd7 {[%clk 0:02:20.1]} 9... Nxd7 {[%clk
0:03:02.3]} 10. Bb5 {[%clk 0:02:19.4]} 10... Bg7 {[%clk 0:03:02.5]} 11. O-O
{[%clk 0:02:18.2]} 11... O-O {[%clk 0:03:02.2]} 12. Rd1 {[%clk 0:02:09.6]} 12...
Qc8 {[%clk 0:03:01]} 13. Nd5 {[%clk 0:02:02.6]} 13... Re8 {[%clk 0:02:47.5]} 14.
Bg5 {[%clk 0:01:43]} 14... Nb6 {[%clk 0:02:34.6]} 15. Qa3 {[%clk 0:01:18.7]}
15... Nxd5 {[%clk 0:02:24.8]} 16. Rxd5 {[%clk 0:01:19.6]} 16... e6 {[%clk
0:02:24.3]} 17. Rdd1 {[%clk 0:01:11.6]} 17... a6 {[%clk 0:02:23.5]} 18. Bd3
{[%clk 0:00:53]} 18... Ne5 {[%clk 0:02:07.1]} 19. c3 {[%clk 0:00:53.1]} 19... b5
{[%clk 0:02:04.5]} 20. Be4 {[%clk 0:00:48]} 20... Rb8 {[%clk 0:01:57]} 21. Qb3
{[%clk 0:00:48.1]} 21... Nc4 {[%clk 0:01:56.4]} 22. Bh4 {[%clk 0:00:43.1]} 22...
Qc5 {[%clk 0:01:46.9]} 23. Rab1 {[%clk 0:00:40.3]} 23... b4 {[%clk 0:01:43.6]}
24. Bg3 {[%clk 0:00:36.1]} 24... Rb6 {[%clk 0:01:29.4]} 25. cxb4 {[%clk
0:00:34.6]} 25... Rxb4 {[%clk 0:01:28.6]} 26. Qc2 {[%clk 0:00:34.8]} 26... Qb6
{[%clk 0:01:22.5]} 27. a3 {[%clk 0:00:28.1]} 27... Rxb2 {[%clk 0:00:29.7]} 28.
Qxc4 {[%clk 0:00:25.6]} 28... Rxb1 {[%clk 0:00:25.2]} 29. Rxb1 {[%clk
0:00:25.4]} 29... Qa5 {[%clk 0:00:25.7]} 30. Qb4 {[%clk 0:00:22.6]} 30... Qxb4
{[%clk 0:00:23.3]} 31. axb4 {[%clk 0:00:22]} 1-0

[Event "Early-Titled-Tuesday-Blitz-February-20-2024"]
[Site "Chess.com"]
[Date "2024.02.20"]
[Round "1"]
[White "LiamPutnam2008"]
[Black "nj123456"]
[Result "1-0"]
[WhiteElo "2803"]
[BlackElo "2448"]
[TimeControl "180+1"]
[EndTime "8:06:41 PST"]
[Termination "LiamPutnam2008 won by resignation"]

1. a3 {[%clk 0:03:00.9]} 1... d5 {[%clk 0:02:59.1]} 2. Nf3 {[%clk 0:03:01.4]}
2... Nf6 {[%clk 0:02:59]} 3. e3 {[%clk 0:03:02.1]} 3... e6 {[%clk 0:02:58.9]} 4.
b4 {[%clk 0:03:02.6]} 4... Be7 {[%clk 0:02:59.4]} 5. Bb2 {[%clk 0:03:03.2]} 5...
O-O {[%clk 0:02:59.8]} 6. c4 {[%clk 0:03:03.8]} 6... b6 {[%clk 0:02:57.6]} 7.
Nc3 {[%clk 0:03:04]} 7... Bb7 {[%clk 0:02:57.9]} 8. Rc1 {[%clk 0:03:04.5]} 8...
Nbd7 {[%clk 0:02:56.4]} 9. cxd5 {[%clk 0:03:03.8]} 9... exd5 {[%clk 0:02:56.1]}
10. d4 {[%clk 0:03:02.3]} 10... a5 {[%clk 0:02:49.4]} 11. b5 {[%clk 0:03:02.4]}
11... Re8 {[%clk 0:02:43.3]} 12. Bd3 {[%clk 0:03:01.9]} 12... Bd6 {[%clk
0:02:41.7]} 13. O-O {[%clk 0:03:00.9]} 13... Nf8 {[%clk 0:02:40.4]} 14. h3
{[%clk 0:02:56.1]} 14... Ne4 {[%clk 0:02:33]} 15. Qb3 {[%clk 0:02:51.5]} 15...
Ng6 {[%clk 0:02:22.6]} 16. Kh1 {[%clk 0:02:38.5]} 16... Nxc3 {[%clk 0:02:08.7]}
17. Rxc3 {[%clk 0:02:37.5]} 17... Nh4 {[%clk 0:02:03.9]} 18. Qd1 {[%clk
0:02:26.8]} 18... Qf6 {[%clk 0:01:58.5]} 19. Nxh4 {[%clk 0:02:22]} 19... Qxh4
{[%clk 0:01:59.4]} 20. Qf3 {[%clk 0:02:21.2]} 20... Re6 {[%clk 0:01:53.9]} 21.
Kg1 {[%clk 0:01:53.9]} 21... Rf6 {[%clk 0:01:34.1]} 22. Qg4 {[%clk 0:01:52.7]}
22... Qh6 {[%clk 0:01:18.1]} 23. Bc1 {[%clk 0:01:49.6]} 23... Bc8 {[%clk
0:01:14.9]} 24. Qe2 {[%clk 0:01:40.8]} 24... Qh4 {[%clk 0:00:53.6]} 25. e4
{[%clk 0:01:38.9]} 25... dxe4 {[%clk 0:00:45.5]} 26. Qxe4 {[%clk 0:01:28.7]}
26... Qxe4 {[%clk 0:00:44.9]} 27. Bxe4 {[%clk 0:01:29.6]} 27... Rb8 {[%clk
0:00:45.2]} 28. Be3 {[%clk 0:01:23]} 28... Bf5 {[%clk 0:00:44]} 29. Bxf5 {[%clk
0:01:21.5]} 29... Rxf5 {[%clk 0:00:44.9]} 30. a4 {[%clk 0:01:22.1]} 30... Re8
{[%clk 0:00:44.1]} 31. Rfc1 {[%clk 0:01:21.7]} 31... h6 {[%clk 0:00:43.5]} 32.
g4 {[%clk 0:01:21.3]} 32... Rf6 {[%clk 0:00:41.7]} 33. Kg2 {[%clk 0:01:21.6]}
33... Rfe6 {[%clk 0:00:41.8]} 34. Kf3 {[%clk 0:01:20.1]} 34... Rf6+ {[%clk
0:00:41.7]} 35. Kg2 {[%clk 0:01:19]} 35... Rfe6 {[%clk 0:00:40.9]} 36. Rc6
{[%clk 0:01:19.7]} 36... Kh7 {[%clk 0:00:38.8]} 37. d5 {[%clk 0:01:17.5]} 37...
Re4 {[%clk 0:00:36.9]} 38. Bxb6 {[%clk 0:01:16.1]} 38... cxb6 {[%clk 0:00:30.9]}
39. Rxd6 {[%clk 0:01:15.9]} 39... Rxa4 {[%clk 0:00:31.8]} 40. Rxb6 {[%clk
0:01:16]} 40... Rd4 {[%clk 0:00:31.9]} 41. d6 {[%clk 0:01:13.6]} 41... Rd8
{[%clk 0:00:32.3]} 42. Rcc6 {[%clk 0:01:11.6]} 42... a4 {[%clk 0:00:32]} 43. Ra6
{[%clk 0:01:12.1]} 43... Rd5 {[%clk 0:00:25.9]} 44. b6 {[%clk 0:01:09.1]} 44...
a3 {[%clk 0:00:21.3]} 45. Rxa3 {[%clk 0:01:07.6]} 45... R5xd6 {[%clk 0:00:21.7]}
46. Rxd6 {[%clk 0:01:08.5]} 46... Rxd6 {[%clk 0:00:22.4]} 47. Rb3 {[%clk
0:01:08.9]} 47... Rd8 {[%clk 0:00:22.7]} 48. b7 {[%clk 0:01:09]} 48... Rb8
{[%clk 0:00:23.3]} 49. Kf3 {[%clk 0:01:09.5]} 49... Kg6 {[%clk 0:00:23.1]} 50.
Ke4 {[%clk 0:01:10.2]} 50... Kg5 {[%clk 0:00:23]} 51. Kd5 {[%clk 0:01:09.4]}
51... g6 {[%clk 0:00:23.3]} 52. Kc6 {[%clk 0:01:09.9]} 52... f5 {[%clk
0:00:21.9]} 53. gxf5 {[%clk 0:01:10.1]} 53... gxf5 {[%clk 0:00:22.8]} 54. Kc7
{[%clk 0:01:10.8]} 54... Rg8 {[%clk 0:00:22.3]} 55. Rg3+ {[%clk 0:01:10.9]} 1-0